bitfinex/quotes_SOLUSD_20230404
["timestamp","ask_amount","ask_price","bid_price","bid_amount"]
[1680577670708,20.0,20.5,20.49,22.67]
[1680577672083,20.0,20.5,20.485,24.32288595]
[1680577676222,20.0,20.502,20.485,24.32288595]
[1680577676424,37.0,20.503,20.485,24.32288595]
[1680577680731,20.0,20.502,20.485,24.32288595]
[1680577681720,655.54389952,20.504,20.49,22.53]
[1680577683934,20.0,20.503,20.49,22.53]
[1680577688642,655.54389952,20.504,20.49,22.53]
[1680577689733,20.0,20.503,20.49,22.53]
[1680577690136,20.0,20.501,20.485,24.32288595]
[1680577695844,22.67,20.5,20.482,133.6671]
[1680577696148,20.0,20.498,20.482,133.6671]
[1680577696334,17.0,20.497,20.482,133.6671]
[1680577712849,17.0,20.498,20.482,133.6671]
[1680577714363,20.0,20.497,20.482,133.6671]
[1680577714545,17.0,20.496,20.482,133.6671]
[1680577715044,17.0,20.498,20.482,133.6671]
[1680577715844,22.67,20.5,20.482,133.6671]
[1680577716056,655.54389952,20.504,20.49,22.53]
[1680577717364,17.0,20.503,20.49,22.53]
[1680577720367,37.0,20.503,20.49,22.53]
[1680577723369,17.0,20.503,20.49,22.53]
[1680577734275,37.0,20.503,20.49,22.53]
[1680577738380,17.0,20.503,20.49,22.53]
[1680577738977,20.0,20.502,20.49,22.53]
[1680577739964,37.0,20.503,20.49,22.53]
[1680577740674,20.0,20.502,20.49,22.53]
[1680577743382,37.0,20.503,20.49,22.53]
[1680577744382,20.0,20.502,20.49,22.53]
[1680577747087,20.0,20.5,20.49,22.53]
[1680577747977,17.0,20.499,20.49,22.53]
[1680577749385,17.0,20.501,20.49,22.53]
[1680577751990,17.0,20.501,20.487,108.5674]
[1680577763585,121.6978,20.504,20.49,22.67]
[1680577765095,17.0,20.503,20.49,22.67]
[1680577768494,12.0,20.504,20.49,22.67]
[1680577768701,12.0,20.504,20.491,17.0]
[1680577770297,12.0,20.504,20.49,22.67]
[1680577771505,14.38162715,20.506,20.49,22.67]
[1680577771798,37.0,20.505,20.49,22.67]
[1680577772000,20.0,20.503,20.49,22.67]
[1680577772585,547.88649682,20.504,20.49,22.67]
[1680577801530,658.89779682,20.504,20.49,22.67]
[1680577802532,658.89779682,20.504,20.491,17.0]
[1680577803238,658.89779682,20.504,20.49,22.67]
[1680577803532,658.89779682,20.504,20.491,17.0]
[1680577807141,17.0,20.503,20.49,22.67]
[1680577807651,20.0,20.502,20.49,22.67]
[1680577812048,20.0,20.502,20.486,7.32288595]
[1680577812341,138.0162,20.502,20.487,17.0]
[1680577818446,138.0162,20.502,20.486,7.32288595]
[1680577818650,17.0,20.501,20.486,7.32288595]
[1680577818954,20.0,20.5,20.486,7.32288595]
[1680577820449,20.0,20.498,20.483,7.32288595]
[1680577823651,17.0,20.499,20.483,7.32288595]
[1680577830948,17.0,20.501,20.483,7.32288595]
[1680577839467,17.0,20.501,20.484,17.0]
[1680577839655,118.0162,20.502,20.484,36.527]
[1680577839858,118.0162,20.502,20.49,22.53]
[1680577859477,118.0162,20.502,20.491,20.0]
[1680577859873,549.40351789,20.503,20.491,20.0]
[1680577873275,20.0,20.495,20.476,20.0]
[1680577873473,20.0,20.493,20.476,20.0]
[1680577873679,17.0,20.492,20.476,20.0]
[1680577874086,20.0,20.491,20.476,20.0]
[1680577874281,17.0,20.49,20.476,20.0]
[1680577874585,20.0,20.489,20.476,20.0]
[1680577874786,17.0,20.488,20.476,20.0]
[1680577876892,17.0,20.488,20.471,109.8301]
[1680577877088,17.0,20.488,20.472,20.0]
[1680577877272,17.0,20.488,20.472,27.32288595]
[1680577877591,17.0,20.488,20.473,7.32288595]
[1680577880082,20.0,20.487,20.473,7.32288595]
[1680577880282,17.0,20.486,20.473,7.32288595]
[1680577894501,20.0,20.489,20.473,7.32288595]
[1680577894688,17.0,20.488,20.473,7.32288595]
[1680577905908,20.0,20.487,20.473,7.32288595]
[1680577906199,17.0,20.486,20.473,7.32288595]
[1680577907010,17.0,20.488,20.473,7.32288595]
[1680577922116,20.0,20.487,20.473,7.32288595]
[1680577922413,17.0,20.486,20.473,7.32288595]
[1680577925121,20.0,20.487,20.473,7.32288595]
[1680577925301,109.4295,20.49,20.473,7.32288595]
[1680577926715,37.0,20.489,20.473,7.32288595]
[1680577934724,17.0,20.489,20.473,7.32288595]
[1680577936633,109.4295,20.49,20.473,7.32288595]
[1680577936931,109.4295,20.49,20.474,17.0]
[1680577937226,109.4295,20.49,20.475,7.32288595]
[1680577937426,109.4295,20.49,20.477,20.0]
[1680577938017,109.4295,20.49,20.478,17.0]
[1680577938633,109.4295,20.49,20.476,17.0]
[1680577939130,109.4295,20.49,20.476,7.32288595]
[1680577939331,109.4295,20.49,20.477,17.0]
[1680577941326,109.4295,20.49,20.48,28.18]
[1680577941717,118.0298,20.493,20.48,28.18]
[1680577942215,118.0298,20.493,20.48,22.53]
[1680577951436,118.0298,20.493,20.481,20.0]
[1680577951738,118.0298,20.493,20.482,20.0]
[1680577951932,118.0298,20.493,20.483,20.0]
[1680577953047,118.0298,20.493,20.484,17.0]
[1680577953238,108.079,20.498,20.485,20.0]
[1680577955145,108.079,20.498,20.484,17.0]
[1680577962128,108.079,20.498,20.49,22.61]
[1680577966040,108.079,20.498,20.484,17.0]
[1680577967748,108.079,20.498,20.484,31.75439645]
[1680577979937,108.079,20.498,20.484,17.0]
[1680577980143,20.0,20.497,20.483,20.0]
[1680577980454,17.0,20.496,20.483,20.0]
[1680577980833,17.0,20.496,20.481,20.0]
[1680577981042,20.0,20.495,20.481,20.0]
[1680577984660,20.0,20.495,20.481,27.32288595]
[1680577986463,20.0,20.497,20.482,17.0]
[1680577986762,20.0,20.497,20.483,20.0]
[1680577989350,17.0,20.496,20.483,20.0]
[1680577989549,17.0,20.496,20.482,20.0]
[1680577989851,20.0,20.495,20.482,20.0]
[1680577990051,17.0,20.494,20.482,20.0]
[1680577990265,20.0,20.493,20.482,20.0]
[1680577994469,17.0,20.492,20.482,20.0]
[1680577996268,20.0,20.491,20.482,20.0]
[1680577996463,17.0,20.49,20.482,20.0]
[1680578002962,17.0,20.49,20.483,20.0]
[1680578003272,17.0,20.49,20.479,20.0]
[1680578007361,13.0,20.49,20.479,20.0]
[1680578007562,13.0,20.49,20.48,7.32288595]
[1680578007979,13.0,20.49,20.481,20.0]
[1680578008873,20.0,20.493,20.481,20.0]
[1680578009484,17.0,20.492,20.481,20.0]
[1680578015585,20.0,20.497,20.481,19.53]
[1680578015985,20.0,20.497,20.482,20.0]
[1680578016776,17.0,20.496,20.482,20.0]
[1680578018596,20.0,20.495,20.482,20.0]
[1680578018774,17.0,20.494,20.482,20.0]
[1680578030501,17.0,20.494,20.483,20.0]
[1680578030804,17.0,20.494,20.481,20.0]
[1680578037106,17.0,20.496,20.481,20.0]
[1680578037301,17.0,20.496,20.482,114.1101]
[1680578037503,17.0,20.496,20.483,20.0]
[1680578044905,554.36491907,20.503,20.483,20.0]
[1680578045105,664.35861907,20.503,20.483,39.527]
[1680578045326,553.61212534,20.502,20.49,22.61]
[1680578045518,553.61212534,20.502,20.491,20.0]
[1680578047320,553.61212534,20.502,20.492,20.0]
[1680578047612,553.61212534,20.502,20.493,37.0]
[1680578047790,553.61212534,20.502,20.493,44.32288595]
[1680578048291,553.61212534,20.502,20.494,27.32288595]
[1680578048492,553.61212534,20.502,20.495,17.0]
[1680578048907,553.61212534,20.502,20.496,20.0]
[1680578050092,553.61212534,20.502,20.495,17.0]
[1680578056529,577.74340974,20.512,20.495,17.0]
[1680578056911,577.74340974,20.512,20.495,24.32288595]
[1680578058019,577.74340974,20.512,20.496,20.0]
[1680578058315,577.74340974,20.512,20.497,17.0]
[1680578059521,577.74340974,20.512,20.496,17.0]
[1680578061317,577.74340974,20.512,20.496,7.32288595]
[1680578061502,577.74340974,20.512,20.497,17.0]
[1680578062017,577.74340974,20.512,20.498,20.0]
[1680578062218,577.74340974,20.512,20.5,28.18]
[1680578062720,577.74340974,20.512,20.501,17.0]
[1680578067207,577.74340974,20.512,20.502,20.0]
[1680578069530,555.26046773,20.517,20.502,20.0]
[1680578069728,20.0,20.516,20.502,20.0]
[1680578070534,17.0,20.515,20.502,20.0]
[1680578070824,20.0,20.516,20.502,20.0]
[1680578071031,17.0,20.515,20.501,20.0]
[1680578079130,17.0,20.516,20.501,20.0]
[1680578086742,131.1965684,20.518,20.501,20.0]
[1680578087042,37.0,20.517,20.502,17.0]
[1680578087242,17.0,20.517,20.503,20.0]
[1680578092737,116.6427,20.518,20.503,20.0]
[1680578092932,17.0,20.517,20.503,20.0]
[1680578093342,116.6427,20.518,20.503,20.0]
[1680578095047,17.0,20.517,20.501,20.0]
[1680578095450,37.0,20.517,20.501,20.0]
[1680578097352,37.0,20.517,20.501,27.32288595]
[1680578102060,17.0,20.517,20.501,27.32288595]
[1680578106061,37.0,20.517,20.501,27.32288595]
[1680578108156,17.0,20.517,20.501,27.32288595]
[1680578108662,17.0,20.517,20.502,19.509]
[1680578109158,17.0,20.517,20.503,20.0]
[1680578111153,116.6427,20.518,20.503,20.0]
[1680578111559,20.0,20.517,20.503,20.0]
[1680578113460,116.6427,20.518,20.503,20.0]
[1680578113648,37.0,20.517,20.503,20.0]
[1680578114369,20.0,20.516,20.503,20.0]
[1680578114551,17.0,20.515,20.503,20.0]
[1680578116457,20.0,20.508,20.493,193.04341181]
[1680578118772,17.0,20.509,20.493,200.36629776]
[1680578121561,17.0,20.509,20.493,144.76798595]
[1680578134396,17.0,20.509,20.493,125.24998595]
[1680578140100,31.65358257,20.509,20.493,140.2355409]
[1680578140517,20.0,20.508,20.493,140.2355409]
[1680578140720,17.0,20.507,20.493,140.2355409]
[1680578152620,17.0,20.508,20.493,140.2355409]
[1680578155539,20.0,20.514,20.493,195.83385271]
[1680578156933,17.0,20.513,20.493,195.83385271]
[1680578158337,17.0,20.513,20.493,188.51096676]
[1680578164549,17.0,20.513,20.494,7.32288595]
[1680578173047,20.0,20.512,20.494,7.32288595]
[1680578173353,17.0,20.511,20.494,7.32288595]
[1680578177357,20.0,20.51,20.493,132.91265495]
[1680578177547,17.0,20.509,20.493,132.91265495]
[1680578178554,20.0,20.508,20.493,132.91265495]
[1680578178761,17.0,20.507,20.493,132.91265495]
[1680578179056,24.87303537,20.506,20.493,117.9271]
[1680578179358,44.38003537,20.506,20.493,117.9271]
[1680578179567,17.0,20.505,20.493,117.9271]
[1680578179750,20.0,20.504,20.493,117.9271]
[1680578179945,17.0,20.503,20.493,117.9271]
[1680578180254,17.0,20.503,20.483,115.6124]
[1680578180460,20.0,20.502,20.483,115.6124]
[1680578180659,20.0,20.5,20.483,115.6124]
[1680578181051,17.0,20.499,20.483,115.6124]
[1680578184451,17.0,20.499,20.483,122.93528595]
[1680578195481,17.0,20.499,20.485,20.0]
[1680578196765,20.0,20.504,20.485,20.0]
[1680578197071,20.0,20.505,20.49,22.68]
[1680578197572,24.87303537,20.506,20.49,22.68]
[1680578197951,17.0,20.505,20.49,22.68]
[1680578198157,20.0,20.504,20.49,22.68]
[1680578198378,17.0,20.503,20.49,22.68]
[1680578216092,20.0,20.504,20.49,22.68]
[1680578216291,17.0,20.503,20.49,22.68]
[1680578216594,17.0,20.504,20.49,22.68]
[1680578223898,17.0,20.504,20.486,24.32288595]
[1680578224213,20.0,20.503,20.483,115.6124]
[1680578224400,20.0,20.501,20.484,17.0]
[1680578224599,17.0,20.5,20.484,17.0]
[1680578228402,17.0,20.5,20.483,122.93528595]
[1680578234514,17.0,20.502,20.483,122.93528595]
[1680578242019,22.64,20.5,20.483,122.93528595]
[1680578242198,17.0,20.499,20.483,122.93528595]
[1680578246609,17.0,20.499,20.485,20.0]
[1680578248615,12.0,20.504,20.485,20.0]
[1680578249013,17.0,20.503,20.485,20.0]
[1680578249417,17.0,20.503,20.484,37.0]
[1680578250815,17.0,20.503,20.485,20.0]
[1680578252417,17.0,20.503,20.486,17.0]
[1680578252620,17.0,20.504,20.486,17.0]
[1680578254606,17.0,20.504,20.484,20.0]
[1680578254607,37.0,20.504,20.483,122.93528595]
[1680578254804,37.0,20.504,20.484,17.0]
[1680578257715,37.0,20.504,20.483,122.93528595]
[1680578257932,20.0,20.503,20.483,115.6124]
[1680578258109,17.0,20.502,20.483,115.6124]
[1680578258618,22.64,20.5,20.483,115.6124]
[1680578258812,20.0,20.498,20.483,115.6124]
[1680578259120,17.0,20.497,20.483,115.6124]
[1680578261813,37.0,20.499,20.483,115.6124]
[1680578262310,17.0,20.499,20.483,115.6124]
[1680578267621,37.0,20.499,20.483,115.6124]
[1680578269513,17.0,20.499,20.483,115.6124]
[1680578271717,41.38603537,20.499,20.483,115.6124]
[1680578271912,95.15966988,20.498,20.482,112.8]
[1680578272125,17.0,20.497,20.482,112.8]
[1680578272328,20.0,20.496,20.482,112.8]
[1680578272631,20.0,20.494,20.482,112.8]
[1680578272823,17.0,20.493,20.482,112.8]
[1680578273017,21.87303537,20.493,20.482,112.8]
[1680578273219,20.0,20.492,20.482,112.8]
[1680578273423,17.0,20.491,20.482,112.8]
[1680578279626,20.0,20.49,20.482,112.8]
[1680578279821,17.0,20.489,20.482,112.8]
[1680578280939,17.0,20.489,20.476,110.7454]
[1680578281530,17.0,20.489,20.471,109.8301]
[1680578281731,20.0,20.488,20.471,109.8301]
[1680578282042,39.525,20.486,20.471,109.8301]
[1680578282345,42.05452965,20.485,20.471,109.8301]
[1680578282552,19.529,20.482,20.471,109.8301]
[1680578282755,17.0,20.481,20.471,109.8301]
[1680578283551,20.0,20.48,20.471,109.8301]
[1680578283854,17.0,20.481,20.471,109.8301]
[1680578284355,17.0,20.483,20.471,109.8301]
[1680578284548,20.0,20.482,20.471,109.8301]
[1680578284743,17.0,20.481,20.471,109.8301]
[1680578287436,20.0,20.48,20.471,109.8301]
[1680578287635,17.0,20.479,20.471,109.8301]
[1680578289847,20.0,20.478,20.471,109.8301]
[1680578290035,17.0,20.477,20.471,109.8301]
[1680578293047,17.0,20.477,20.469,20.0]
[1680578300358,17.0,20.477,20.461,117.4505]
[1680578300557,17.0,20.477,20.462,20.0]
[1680578314172,20.0,20.476,20.462,20.0]
[1680578314475,17.0,20.475,20.462,20.0]
[1680578327575,20.0,20.474,20.461,117.4505]
[1680578327874,17.0,20.473,20.461,117.4505]
[1680578329985,20.0,20.472,20.461,117.4505]
[1680578330282,17.0,20.471,20.461,117.4505]
[1680578332992,17.0,20.47,20.461,117.4505]
[1680578333186,17.0,20.471,20.461,117.4505]
[1680578336093,16.89852688,20.471,20.461,117.4505]
[1680578337389,28.21,20.47,20.461,117.4505]
[1680578337692,28.21,20.47,20.46,99.6077]
[1680578337883,28.37,20.47,20.46,99.6077]
[1680578338195,20.0,20.469,20.46,99.6077]
[1680578338393,17.0,20.468,20.46,99.6077]
[1680578338585,20.0,20.467,20.46,99.6077]
[1680578338787,17.0,20.466,20.46,99.6077]
[1680578341896,17.0,20.468,20.46,99.6077]
[1680578346389,20.0,20.473,20.46,99.6077]
[1680578347689,20.0,20.471,20.46,99.6077]
[1680578347888,17.0,20.47,20.46,99.6077]
[1680578350101,17.0,20.469,20.46,99.6077]
[1680578358104,17.0,20.469,20.46,113.99472078]
[1680578361301,17.0,20.469,20.46,113.99472078]
[1680578368123,17.0,20.469,20.46,99.6077]
[1680578388036,17.0,20.469,20.46,114.28187518]
[1680578388934,20.0,20.468,20.46,114.28187518]
[1680578389140,20.0,20.466,20.46,114.28187518]
[1680578389641,17.0,20.465,20.46,114.28187518]
[1680578390338,17.0,20.465,20.46,14.67417518]
[1680578390540,20.0,20.464,20.451,110.5235]
[1680578390832,17.0,20.463,20.452,20.0]
[1680578391033,22.67,20.46,20.451,110.5235]
[1680578391233,17.0,20.459,20.451,110.5235]
[1680578397742,20.0,20.458,20.451,110.5235]
[1680578397950,17.0,20.457,20.451,110.5235]
[1680578398442,17.0,20.457,20.449,100.1783]
[1680578399743,22.67,20.46,20.449,100.1783]
[1680578399935,20.0,20.458,20.449,100.1783]
[1680578400135,17.0,20.457,20.449,100.1783]
[1680578402132,17.0,20.459,20.449,100.1783]
[1680578402935,22.67,20.46,20.449,100.1783]
[1680578403138,39.543,20.468,20.449,100.1783]
[1680578404236,17.0,20.463,20.449,100.1783]
[1680578406754,17.0,20.463,20.45,22.74]
[1680578417971,22.65,20.46,20.449,100.1783]
[1680578418270,17.0,20.459,20.449,100.1783]
[1680578418444,22.65,20.46,20.449,100.1783]
[1680578420463,39.543,20.467,20.45,22.74]
[1680578420841,22.67,20.468,20.45,22.74]
[1680578421049,22.67,20.468,20.452,20.0]
[1680578421266,22.67,20.468,20.454,20.0]
[1680578422054,14.98800529,20.47,20.454,20.0]
[1680578422266,17.0,20.469,20.454,20.0]
[1680578422559,17.0,20.469,20.453,114.7619]
[1680578423870,17.0,20.469,20.454,20.0]
[1680578424048,20.0,20.474,20.455,17.0]
[1680578424247,17.0,20.473,20.455,17.0]
[1680578424449,17.0,20.473,20.454,20.0]
[1680578426769,37.0,20.473,20.454,20.0]
[1680578426952,17.0,20.473,20.454,20.0]
[1680578427563,37.0,20.473,20.453,114.7619]
[1680578427760,37.0,20.473,20.454,17.0]
[1680578429464,37.0,20.473,20.453,114.7619]
[1680578429667,20.0,20.472,20.453,114.7619]
[1680578429851,17.0,20.471,20.453,114.7619]
[1680578430584,20.0,20.47,20.453,114.7619]
[1680578430785,17.0,20.469,20.453,114.7619]
[1680578439670,17.0,20.471,20.453,114.7619]
[1680578441279,28.43,20.47,20.453,114.7619]
[1680578441578,17.0,20.469,20.453,114.7619]
[1680578446465,20.0,20.468,20.453,114.7619]
[1680578446665,17.0,20.467,20.453,114.7619]
[1680578454893,17.0,20.469,20.453,114.7619]
[1680578455093,20.0,20.468,20.453,114.7619]
[1680578455296,17.0,20.467,20.453,114.7619]
[1680578455593,28.43,20.47,20.454,20.0]
[1680578456981,17.0,20.469,20.454,20.0]
[1680578459000,17.0,20.469,20.453,114.7619]
[1680578459294,17.0,20.469,20.454,20.0]
[1680578463199,20.0,20.474,20.455,17.0]
[1680578463401,17.0,20.473,20.455,17.0]
[1680578465698,17.0,20.473,20.454,20.0]
[1680578466000,17.0,20.473,20.455,17.0]
[1680578474802,22.23483664,20.473,20.455,17.0]
[1680578476382,22.23483664,20.473,20.453,114.7619]
[1680578476903,20.0,20.472,20.453,114.7619]
[1680578477103,17.0,20.471,20.453,114.7619]
[1680578487411,22.66,20.47,20.453,114.7619]
[1680578487595,17.0,20.469,20.453,114.7619]
[1680578492016,17.0,20.469,20.454,20.0]
[1680578492701,17.0,20.469,20.453,114.7619]
[1680578493094,17.0,20.469,20.454,20.0]
[1680578494525,17.0,20.469,20.453,114.7619]
[1680578506131,31.48938048,20.469,20.453,114.7619]
[1680578512127,20.0,20.468,20.453,114.7619]
[1680578512327,17.0,20.467,20.453,114.7619]
[1680578516153,17.0,20.468,20.453,114.7619]
[1680578526451,19.72421712,20.469,20.453,114.7619]
[1680578526662,14.48938048,20.469,20.453,114.7619]
[1680578526962,22.66,20.47,20.454,20.0]
[1680578527751,37.20010691,20.47,20.454,20.0]
[1680578527950,22.66,20.47,20.454,20.0]
[1680578528183,22.66,20.47,20.455,17.0]
[1680578530562,22.66,20.47,20.453,114.7619]
[1680578530766,17.0,20.469,20.453,114.7619]
[1680578532063,22.66,20.47,20.453,114.7619]
[1680578532270,22.66,20.47,20.454,37.0]
[1680578532465,22.66,20.47,20.454,56.555]
[1680578532770,5.23483664,20.472,20.46,22.74]
[1680578533067,5.23483664,20.472,20.46,136.9491]
[1680578533459,20.0,20.474,20.46,136.9491]
[1680578533663,20.0,20.474,20.462,20.0]
[1680578534058,20.0,20.474,20.461,117.9246]
[1680578534362,20.0,20.479,20.461,117.9246]
[1680578534964,17.0,20.478,20.461,117.9246]
[1680578535264,20.0,20.477,20.461,117.9246]
[1680578535465,20.0,20.477,20.462,17.0]
[1680578535853,17.0,20.476,20.461,117.9246]
[1680578536059,20.0,20.475,20.461,117.9246]
[1680578536261,17.0,20.474,20.461,117.9246]
[1680578536575,22.74,20.48,20.461,117.9246]
[1680578536576,22.74,20.48,20.462,20.0]
[1680578536869,28.43,20.478,20.463,20.0]
[1680578537059,17.0,20.477,20.463,20.0]
[1680578537563,17.0,20.477,20.462,20.0]
[1680578545573,37.0,20.479,20.462,20.0]
[1680578546278,17.0,20.479,20.462,20.0]
[1680578547361,37.0,20.479,20.462,20.0]
[1680578547879,17.0,20.479,20.462,20.0]
[1680578550771,37.0,20.479,20.462,20.0]
[1680578551081,17.0,20.479,20.462,20.0]
[1680578552575,20.0,20.478,20.462,20.0]
[1680578552785,17.0,20.477,20.462,20.0]
[1680578555883,17.0,20.478,20.462,20.0]
[1680578558574,22.74,20.48,20.463,20.0]
[1680578559968,17.0,20.479,20.463,20.0]
[1680578560767,17.0,20.479,20.462,40.0]
[1680578562587,17.0,20.479,20.462,20.0]
[1680578564887,20.0,20.478,20.462,20.0]
[1680578565080,17.0,20.477,20.462,20.0]
[1680578566672,17.0,20.479,20.462,20.0]
[1680578576993,37.0,20.479,20.462,20.0]
[1680578578893,79.59429811,20.479,20.462,20.0]
[1680578579284,20.0,20.478,20.462,20.0]
[1680578579483,17.0,20.477,20.462,20.0]
[1680578580292,20.0,20.476,20.462,20.0]
[1680578580500,17.0,20.475,20.462,20.0]
[1680578586004,17.0,20.477,20.462,20.0]
[1680578593700,17.0,20.478,20.462,20.0]
[1680578594006,20.0,20.477,20.462,20.0]
[1680578594207,17.0,20.476,20.462,20.0]
[1680578594992,20.0,20.477,20.462,20.0]
[1680578595208,17.0,20.476,20.462,20.0]
[1680578599509,17.0,20.476,20.46,151.42555263]
[1680578599719,22.66,20.47,20.46,128.68555263]
[1680578599913,20.0,20.468,20.46,128.68555263]
[1680578600510,17.0,20.467,20.46,128.68555263]
[1680578601501,17.0,20.469,20.46,128.68555263]
[1680578604918,17.0,20.469,20.46,128.68555263]
[1680578608722,56.72351648,20.475,20.46,128.68555263]
[1680578609021,20.0,20.474,20.46,128.68555263]
[1680578609408,40.0,20.474,20.46,128.68555263]
[1680578610020,17.0,20.473,20.46,128.68555263]
[1680578611928,20.0,20.474,20.46,128.68555263]
[1680578612124,20.0,20.475,20.46,151.42555263]
[1680578612519,20.0,20.477,20.46,151.42555263]
[1680578612837,84.477162,20.48,20.461,20.0]
[1680578613024,22.66,20.48,20.462,20.0]
[1680578614143,22.66,20.48,20.463,20.0]
[1680578614334,17.0,20.479,20.463,20.0]
[1680578617330,17.0,20.48,20.462,20.0]
[1680578621150,17.0,20.481,20.462,20.0]
[1680578621553,17.0,20.481,20.463,17.0]
[1680578621850,17.0,20.481,20.464,20.0]
[1680578622246,17.0,20.481,20.463,37.0]
[1680578623160,17.0,20.481,20.463,17.0]
[1680578623450,37.0,20.481,20.463,17.0]
[1680578623951,37.0,20.481,20.462,133.9977]
[1680578625534,17.0,20.481,20.462,133.9977]
[1680578625735,37.0,20.481,20.462,133.9977]
[1680578628447,17.0,20.481,20.463,20.0]
[1680578628632,17.0,20.481,20.463,37.0]
[1680578632060,17.0,20.481,20.463,17.0]
[1680578635259,17.0,20.481,20.462,133.9977]
[1680578635457,17.0,20.481,20.463,17.0]
[1680578640868,22.74,20.482,20.47,28.26]
[1680578641166,22.74,20.482,20.47,56.52]
[1680578641370,22.74,20.482,20.471,37.0]
[1680578641667,22.74,20.482,20.472,20.0]
[1680578641868,22.74,20.482,20.473,17.0]
[1680578642067,93.45,20.488,20.473,17.0]
[1680578643367,93.45,20.488,20.471,142.24308595]
[1680578643566,93.45,20.488,20.472,17.0]
[1680578643767,93.45,20.488,20.473,20.0]
[1680578644483,17.0,20.487,20.473,20.0]
[1680578644971,17.0,20.487,20.472,20.0]
[1680578645159,17.0,20.487,20.472,128.6725]
[1680578648253,17.0,20.487,20.472,135.99538595]
[1680578651074,572.1281642,20.492,20.472,135.99538595]
[1680578651272,17.0,20.491,20.472,27.32288595]
[1680578651878,17.0,20.491,20.473,117.6636]
[1680578657069,37.0,20.491,20.473,117.6636]
[1680578660377,20.0,20.49,20.473,117.6636]
[1680578660578,17.0,20.489,20.473,117.6636]
[1680578661379,20.0,20.488,20.473,117.6636]
[1680578661683,17.0,20.487,20.473,117.6636]
[1680578661979,20.0,20.486,20.472,20.0]
[1680578662186,17.0,20.485,20.472,20.0]
[1680578671167,17.0,20.487,20.472,20.0]
[1680578696132,20.0,20.486,20.472,20.0]
[1680578696435,17.0,20.485,20.472,20.0]
[1680578696927,17.0,20.487,20.472,20.0]
[1680578697925,17.0,20.489,20.472,20.0]
[1680578699128,20.0,20.488,20.472,20.0]
[1680578699330,17.0,20.487,20.472,20.0]
[1680578719638,17.0,20.486,20.472,20.0]
[1680578719839,17.0,20.489,20.472,20.0]
[1680578721830,17.0,20.489,20.472,27.32288595]